Department family,Entity,Date,Expense Type,Expense area,Supplier,Transaction number,AP Amount (�)
Department of Health,NHS Rotherham CCG,31/01/2020,Clinical&Medical-Voluntary Sector,COMMISSIONING - NON ACUTE,AGE UK ROTHERHAM,30468025,"40,000.00 "
Department of Health,NHS Rotherham CCG,31/01/2020,Hcare Srv Rec Fdtn Trust-Contract Baseline,ACUTE COMMISSIONING,BARNSLEY HOSPITAL NHS FOUNDATION TRUST,30622381,"113,122.00 "
Department of Health,NHS Rotherham CCG,31/01/2020,Hcare Srv Rec Fdtn Trust-Contract Baseline,ACUTE COMMISSIONING,BARNSLEY HOSPITAL NHS FOUNDATION TRUST,30622383,"149,100.00 "
Department of Health,NHS Rotherham CCG,31/01/2020,Clinical&Medical-Commercial Sector,ACUTE COMMISSIONING,BMI HEALTHCARE LTD,30520213,"25,613.94 "
Department of Health,NHS Rotherham CCG,31/01/2020,Clinical&Medical-Commercial Sector,ACUTE COMMISSIONING,CARE UK CLINICAL SERVICES LTD,30550122,"49,555.00 "
Department of Health,NHS Rotherham CCG,31/01/2020,Hcare Srv Rec Fdtn Trust-Contract Baseline,ACUTE COMMISSIONING,CHESTERFIELD ROYAL HOSPITAL NHS FOUNDATION TRUST,30520224,"26,187.00 "
Department of Health,NHS Rotherham CCG,31/12/2019,Hcare Srv Rec Fdtn Trust-Contract Baseline,ACUTE COMMISSIONING,CHESTERFIELD ROYAL HOSPITAL NHS FOUNDATION TRUST,30430208,"26,187.00"
Department of Health,NHS Rotherham CCG,31/01/2020,Clinical&Medical-Commercial Sector,ACUTE COMMISSIONING,CLAREMONT HOSPITAL,30545863,"27,218.00 "
Department of Health,NHS Rotherham CCG,31/01/2020,Clinical&Medical-Commercial Sector,ACUTE COMMISSIONING,CLAREMONT HOSPITAL,30674813,"47,408.00 "
Department of Health,NHS Rotherham CCG,31/01/2020,C&M-APMS DES Extended Hours Access,PRC DELEGATED CO-COMMISSIONING,CONNECT HEALTHCARE ROTHERHAM LTD,30765250,"19,011.79 "
Department of Health,NHS Rotherham CCG,31/01/2020,C&M-APMS PCN DES Clinical Director,PRC DELEGATED CO-COMMISSIONING,CONNECT HEALTHCARE ROTHERHAM LTD,30765250,"8,882.71 "
Department of Health,NHS Rotherham CCG,31/01/2020,C&M-APMS PCN DES PCN support,LOCAL ENHANCED SERVICES,CONNECT HEALTHCARE ROTHERHAM LTD,30765250,"19,479.95 "
Department of Health,NHS Rotherham CCG,31/01/2020,Clinical&Medical-Voluntary Sector,PROGRAMME PROJECTS,CROSSROADS CARE ROTHERHAM,30808774,"57,463.00 "
Department of Health,NHS Rotherham CCG,31/01/2020,Hcare Srv Rec Fdtn Trust-Contract Baseline,ACUTE COMMISSIONING,DONCASTER AND BASSETLAW HOSPITALS NHS FOUNDATION TRUST,30596942,"64,518.00 "
Department of Health,NHS Rotherham CCG,31/12/2019,Hcare Srv Rec Fdtn Trust-Contract Baseline,ACUTE COMMISSIONING,DONCASTER AND BASSETLAW HOSPITALS NHS FOUNDATION TRUST,30430216,"809,381.00"
Department of Health,NHS Rotherham CCG,31/01/2020,C&M-PMS Contract Value,PRC DELEGATED CO-COMMISSIONING,NHS ROTHERHAM CCG GP PRACTICE,30545475,"38,500.36 "
Department of Health,NHS Rotherham CCG,31/01/2020,C&M-PMS Out of Hours Opt Outs,PRC DELEGATED CO-COMMISSIONING,NHS ROTHERHAM CCG GP PRACTICE,30545475,8.17 
Department of Health,NHS Rotherham CCG,31/01/2020,C&M-PMS PCN DES Participation,PRC DELEGATED CO-COMMISSIONING,NHS ROTHERHAM CCG GP PRACTICE,30545475,733.15 
Department of Health,NHS Rotherham CCG,31/01/2020,C&M-PMS Prem Healthcentre Rent,PRC DELEGATED CO-COMMISSIONING,NHS ROTHERHAM CCG GP PRACTICE,30545475,996.69 
Department of Health,NHS Rotherham CCG,31/01/2020,C&M-PMS Prem Notional Rent,PRC DELEGATED CO-COMMISSIONING,NHS ROTHERHAM CCG GP PRACTICE,30545475,"2,833.33 "
Department of Health,NHS Rotherham CCG,31/01/2020,C&M-PMS Prem Rates,PRC DELEGATED CO-COMMISSIONING,NHS ROTHERHAM CCG GP PRACTICE,30545475,662.00 
Department of Health,NHS Rotherham CCG,31/01/2020,C&M-PMS QOF Aspiration,PRC DELEGATED CO-COMMISSIONING,NHS ROTHERHAM CCG GP PRACTICE,30545475,"3,168.86 "
Department of Health,NHS Rotherham CCG,31/01/2020,C&M-PMS Contract Value,PRC DELEGATED CO-COMMISSIONING,NHS ROTHERHAM CCG GP PRACTICE,30545474,"99,883.30 "
Department of Health,NHS Rotherham CCG,31/01/2020,C&M-PMS Out of Hours Opt Outs,PRC DELEGATED CO-COMMISSIONING,NHS ROTHERHAM CCG GP PRACTICE,30545474,5.23 
Department of Health,NHS Rotherham CCG,31/01/2020,C&M-PMS PCN DES Participation,PRC DELEGATED CO-COMMISSIONING,NHS ROTHERHAM CCG GP PRACTICE,30545474,"1,887.18 "
Department of Health,NHS Rotherham CCG,31/01/2020,C&M-PMS PCO Other,PRC DELEGATED CO-COMMISSIONING,NHS ROTHERHAM CCG GP PRACTICE,30545474,719.80 
Department of Health,NHS Rotherham CCG,31/01/2020,C&M-PMS Prem Notional Rent,PRC DELEGATED CO-COMMISSIONING,NHS ROTHERHAM CCG GP PRACTICE,30545474,"7,331.33 "
Department of Health,NHS Rotherham CCG,31/01/2020,C&M-PMS Prem Rates,PRC DELEGATED CO-COMMISSIONING,NHS ROTHERHAM CCG GP PRACTICE,30545474,"2,492.00 "
Department of Health,NHS Rotherham CCG,31/01/2020,C&M-PMS QOF Aspiration,PRC DELEGATED CO-COMMISSIONING,NHS ROTHERHAM CCG GP PRACTICE,30545474,"10,425.94 "
Department of Health,NHS Rotherham CCG,31/01/2020,C&M-PMS Contract Value,PRC DELEGATED CO-COMMISSIONING,NHS ROTHERHAM CCG GP PRACTICE,30545477,"93,862.17 "
Department of Health,NHS Rotherham CCG,31/01/2020,C&M-PMS Out of Hours Opt Outs,PRC DELEGATED CO-COMMISSIONING,NHS ROTHERHAM CCG GP PRACTICE,30545477,40.56 
Department of Health,NHS Rotherham CCG,31/01/2020,C&M-PMS PCN DES Participation,PRC DELEGATED CO-COMMISSIONING,NHS ROTHERHAM CCG GP PRACTICE,30545477,"1,778.35 "
Department of Health,NHS Rotherham CCG,31/01/2020,C&M-PMS Prem Actual Rent,PRC DELEGATED CO-COMMISSIONING,NHS ROTHERHAM CCG GP PRACTICE,30545477,"39,941.50 "
Department of Health,NHS Rotherham CCG,31/01/2020,C&M-PMS QOF Aspiration,PRC DELEGATED CO-COMMISSIONING,NHS ROTHERHAM CCG GP PRACTICE,30545477,"8,615.94 "
Department of Health,NHS Rotherham CCG,31/01/2020,C&M-GMS Global Sum,PRC DELEGATED CO-COMMISSIONING,NHS ROTHERHAM CCG GP PRACTICE,30805185,"45,698.90 "
Department of Health,NHS Rotherham CCG,31/01/2020,C&M-GMS MPIG Correction Factor,PRC DELEGATED CO-COMMISSIONING,NHS ROTHERHAM CCG GP PRACTICE,30805185,61.70 
Department of Health,NHS Rotherham CCG,31/01/2020,C&M-GMS PCN DES Participation,PRC DELEGATED CO-COMMISSIONING,NHS ROTHERHAM CCG GP PRACTICE,30805185,955.79 
Department of Health,NHS Rotherham CCG,31/01/2020,C&M-GMS Prem Notional Rent,PRC DELEGATED CO-COMMISSIONING,NHS ROTHERHAM CCG GP PRACTICE,30805185,"2,991.67 "
Department of Health,NHS Rotherham CCG,31/01/2020,C&M-GMS Prem Rates,PRC DELEGATED CO-COMMISSIONING,NHS ROTHERHAM CCG GP PRACTICE,30805185,355.32 
Department of Health,NHS Rotherham CCG,31/01/2020,C&M-GMS Prem Water Rates,PRC DELEGATED CO-COMMISSIONING,NHS ROTHERHAM CCG GP PRACTICE,30805185,103.52 
Department of Health,NHS Rotherham CCG,31/01/2020,C&M-GMS QOF Aspiration,PRC DELEGATED CO-COMMISSIONING,NHS ROTHERHAM CCG GP PRACTICE,30805185,"5,424.35 "
Department of Health,NHS Rotherham CCG,31/01/2020,C&M-PMS Contract Value,PRC DELEGATED CO-COMMISSIONING,NHS ROTHERHAM CCG GP PRACTICE,30563990,"112,114.77 "
Department of Health,NHS Rotherham CCG,31/01/2020,C&M-PMS Out of Hours Opt Outs,PRC DELEGATED CO-COMMISSIONING,NHS ROTHERHAM CCG GP PRACTICE,30563990,21.20 
Department of Health,NHS Rotherham CCG,31/01/2020,C&M-PMS PCN DES Participation,PRC DELEGATED CO-COMMISSIONING,NHS ROTHERHAM CCG GP PRACTICE,30563990,"2,122.28 "
Department of Health,NHS Rotherham CCG,31/01/2020,C&M-PMS PCO Locum Sickness,PRC DELEGATED CO-COMMISSIONING,NHS ROTHERHAM CCG GP PRACTICE,30563990,"6,988.74 "
Department of Health,NHS Rotherham CCG,31/01/2020,C&M-PMS Prem Healthcentre Rent,PRC DELEGATED CO-COMMISSIONING,NHS ROTHERHAM CCG GP PRACTICE,30563990,"1,789.21 "
Department of Health,NHS Rotherham CCG,31/01/2020,C&M-PMS QOF Aspiration,PRC DELEGATED CO-COMMISSIONING,NHS ROTHERHAM CCG GP PRACTICE,30563990,"9,254.42 "
Department of Health,NHS Rotherham CCG,31/01/2020,ME - PMS GP Prior Year ERs,PRC DELEGATED CO-COMMISSIONING,NHS ROTHERHAM CCG GP PRACTICE,30563990,"3,081.33 "
Department of Health,NHS Rotherham CCG,31/01/2020,ME-PMS GP Pension EEs-PMS,PRC DELEGATED CO-COMMISSIONING,NHS ROTHERHAM CCG GP PRACTICE,30563990,"1,125.65 "
Department of Health,NHS Rotherham CCG,31/01/2020,ME-PMS GP Pension ERs Adjs - PMS,PRC DELEGATED CO-COMMISSIONING,NHS ROTHERHAM CCG GP PRACTICE,30563990,92.12 
Department of Health,NHS Rotherham CCG,31/01/2020,ME-PMS GP Prior Year EEs,PRC DELEGATED CO-COMMISSIONING,NHS ROTHERHAM CCG GP PRACTICE,30563990,"3,578.49 "
Department of Health,NHS Rotherham CCG,31/01/2020,C&M-GMS Global Sum,PRC DELEGATED CO-COMMISSIONING,NHS ROTHERHAM CCG GP PRACTICE,30805188,"88,791.48 "
Department of Health,NHS Rotherham CCG,31/01/2020,C&M-GMS MPIG Correction Factor,PRC DELEGATED CO-COMMISSIONING,NHS ROTHERHAM CCG GP PRACTICE,30805188,"1,286.10 "
Department of Health,NHS Rotherham CCG,31/01/2020,C&M-GMS PCN DES Participation,PRC DELEGATED CO-COMMISSIONING,NHS ROTHERHAM CCG GP PRACTICE,30805188,"1,813.88 "
Department of Health,NHS Rotherham CCG,31/01/2020,C&M-GMS Prem Notional Rent,PRC DELEGATED CO-COMMISSIONING,NHS ROTHERHAM CCG GP PRACTICE,30805188,"7,413.75 "
Department of Health,NHS Rotherham CCG,31/01/2020,C&M-GMS Prem Rates,PRC DELEGATED CO-COMMISSIONING,NHS ROTHERHAM CCG GP PRACTICE,30805188,"2,455.00 "
Department of Health,NHS Rotherham CCG,31/01/2020,C&M-GMS QOF Aspiration,PRC DELEGATED CO-COMMISSIONING,NHS ROTHERHAM CCG GP PRACTICE,30805188,"9,939.77 "
Department of Health,NHS Rotherham CCG,31/01/2020,C&M-PMS Contract Value,PRC DELEGATED CO-COMMISSIONING,NHS ROTHERHAM CCG GP PRACTICE,30545480,(264.47)
Department of Health,NHS Rotherham CCG,31/01/2020,C&M-PMS GP Statutory Levy,PRC DELEGATED CO-COMMISSIONING,NHS ROTHERHAM CCG GP PRACTICE,30545480,(587.97)
Department of Health,NHS Rotherham CCG,31/01/2020,C&M-PMS Out of Hours Opt Outs,PRC DELEGATED CO-COMMISSIONING,NHS ROTHERHAM CCG GP PRACTICE,30545480,"(8,048.11)"
Department of Health,NHS Rotherham CCG,31/01/2020,C&M-PMS Voluntary Levy,PRC DELEGATED CO-COMMISSIONING,NHS ROTHERHAM CCG GP PRACTICE,30545480,(86.47)
Department of Health,NHS Rotherham CCG,31/01/2020,ME - PMS GP Prior Year ERs,PRC DELEGATED CO-COMMISSIONING,NHS ROTHERHAM CCG GP PRACTICE,30545480,(361.82)
Department of Health,NHS Rotherham CCG,31/01/2020,ME - PMS TPS Added Years Adj EEs,PRC DELEGATED CO-COMMISSIONING,NHS ROTHERHAM CCG GP PRACTICE,30545480,(720.00)
Department of Health,NHS Rotherham CCG,31/01/2020,ME-PMS GP Pension EEs Adjs - PMS,PRC DELEGATED CO-COMMISSIONING,NHS ROTHERHAM CCG GP PRACTICE,30545480,"(1,953.00)"
Department of Health,NHS Rotherham CCG,31/01/2020,ME-PMS GP Pension EEs-PMS,PRC DELEGATED CO-COMMISSIONING,NHS ROTHERHAM CCG GP PRACTICE,30545480,"(12,847.14)"
Department of Health,NHS Rotherham CCG,31/01/2020,ME-PMS GP Pension ERs Adjs - PMS,PRC DELEGATED CO-COMMISSIONING,NHS ROTHERHAM CCG GP PRACTICE,30545480,"(16,626.89)"
Department of Health,NHS Rotherham CCG,31/01/2020,ME-PMS GP Prior Year EEs,PRC DELEGATED CO-COMMISSIONING,NHS ROTHERHAM CCG GP PRACTICE,30545480,(473.52)
Department of Health,NHS Rotherham CCG,31/01/2020,C&M-PMS Contract Value,PRC DELEGATED CO-COMMISSIONING,NHS ROTHERHAM CCG GP PRACTICE,30545481,"172,178.73 "
Department of Health,NHS Rotherham CCG,31/01/2020,C&M-PMS Out of Hours Opt Outs,PRC DELEGATED CO-COMMISSIONING,NHS ROTHERHAM CCG GP PRACTICE,30545481,12.40 
Department of Health,NHS Rotherham CCG,31/01/2020,C&M-PMS PCN DES Participation,PRC DELEGATED CO-COMMISSIONING,NHS ROTHERHAM CCG GP PRACTICE,30545481,"3,267.42 "
Department of Health,NHS Rotherham CCG,31/01/2020,C&M-PMS Prem Actual Rent,PRC DELEGATED CO-COMMISSIONING,NHS ROTHERHAM CCG GP PRACTICE,30545481,"12,510.33 "
Department of Health,NHS Rotherham CCG,31/01/2020,C&M-PMS Prem Notional Rent,PRC DELEGATED CO-COMMISSIONING,NHS ROTHERHAM CCG GP PRACTICE,30545481,"7,477.08 "
Department of Health,NHS Rotherham CCG,31/01/2020,C&M-PMS Prem Rates,PRC DELEGATED CO-COMMISSIONING,NHS ROTHERHAM CCG GP PRACTICE,30545481,"4,907.00 "
Department of Health,NHS Rotherham CCG,31/01/2020,C&M-PMS QOF Aspiration,PRC DELEGATED CO-COMMISSIONING,NHS ROTHERHAM CCG GP PRACTICE,30545481,"19,545.78 "
Department of Health,NHS Rotherham CCG,31/01/2020,ME - PMS GP Prior Year ERs,PRC DELEGATED CO-COMMISSIONING,NHS ROTHERHAM CCG GP PRACTICE,30545481,115.27 
Department of Health,NHS Rotherham CCG,31/01/2020,C&M-PMS Cost of Drugs -Dispensing,LOCAL ENHANCED SERVICES,NHS ROTHERHAM CCG GP PRACTICE,30827184,"(36,152.61)"
Department of Health,NHS Rotherham CCG,31/01/2020,C&M-PMS Prsc Chrgs Cll&Rmttd by GPs,PRC DELEGATED CO-COMMISSIONING,NHS ROTHERHAM CCG GP PRACTICE,30827184,(792.00)
Department of Health,NHS Rotherham CCG,31/01/2020,C&M-PMS Cost of Drugs -Dispensing,LOCAL ENHANCED SERVICES,NHS ROTHERHAM CCG GP PRACTICE,30827186,"57,864.34 "
Department of Health,NHS Rotherham CCG,31/01/2020,C&M-PMS Prof fees Dispensing,PRC DELEGATED CO-COMMISSIONING,NHS ROTHERHAM CCG GP PRACTICE,30827186,"8,906.33 "
Department of Health,NHS Rotherham CCG,31/01/2020,C&M-PMS Prsc Chrgs Cll&Rmttd by GPs,LOCAL ENHANCED SERVICES,NHS ROTHERHAM CCG GP PRACTICE,30827186,792.00 
Department of Health,NHS Rotherham CCG,31/01/2020,C&M-PMS Delivery,PRC DELEGATED CO-COMMISSIONING,NHS ROTHERHAM CCG GP PRACTICE,30516250,"56,849.00 "
Department of Health,NHS Rotherham CCG,31/01/2020,C&M-PMS Contract Value,PRC DELEGATED CO-COMMISSIONING,NHS ROTHERHAM CCG GP PRACTICE,30545479,"96,739.99 "
Department of Health,NHS Rotherham CCG,31/01/2020,C&M-PMS DES Extended Hours Access,PRC DELEGATED CO-COMMISSIONING,NHS ROTHERHAM CCG GP PRACTICE,30545479,"6,938.02 "
Department of Health,NHS Rotherham CCG,31/01/2020,C&M-PMS PCN DES Clinical Director,PRC DELEGATED CO-COMMISSIONING,NHS ROTHERHAM CCG GP PRACTICE,30545479,"3,241.53 "
Department of Health,NHS Rotherham CCG,31/01/2020,C&M-PMS PCN DES PCN support,LOCAL ENHANCED SERVICES,NHS ROTHERHAM CCG GP PRACTICE,30545479,"7,108.63 "
Department of Health,NHS Rotherham CCG,31/01/2020,C&M-PMS PCN DES Participation,PRC DELEGATED CO-COMMISSIONING,NHS ROTHERHAM CCG GP PRACTICE,30545479,"1,830.94 "
Department of Health,NHS Rotherham CCG,31/01/2020,C&M-PMS Prem Notional Rent,PRC DELEGATED CO-COMMISSIONING,NHS ROTHERHAM CCG GP PRACTICE,30545479,"14,528.58 "
Department of Health,NHS Rotherham CCG,31/01/2020,C&M-PMS Prem Rates,PRC DELEGATED CO-COMMISSIONING,NHS ROTHERHAM CCG GP PRACTICE,30545479,"3,103.00 "
Department of Health,NHS Rotherham CCG,31/01/2020,C&M-PMS QOF Aspiration,PRC DELEGATED CO-COMMISSIONING,NHS ROTHERHAM CCG GP PRACTICE,30545479,"10,795.81 "
Department of Health,NHS Rotherham CCG,31/01/2020,ME - PMS GP Prior Year ERs,PRC DELEGATED CO-COMMISSIONING,NHS ROTHERHAM CCG GP PRACTICE,30545479,"2,026.63 "
Department of Health,NHS Rotherham CCG,31/01/2020,ME-PMS GP Prior Year EEs,PRC DELEGATED CO-COMMISSIONING,NHS ROTHERHAM CCG GP PRACTICE,30545479,"3,247.10 "
Department of Health,NHS Rotherham CCG,31/01/2020,C&M-PMS Cost of Drugs -Dispensing,LOCAL ENHANCED SERVICES,NHS ROTHERHAM CCG GP PRACTICE,30827180,"(46,027.85)"
Department of Health,NHS Rotherham CCG,31/01/2020,C&M-PMS Prsc Chrgs Cll&Rmttd by GPs,PRC DELEGATED CO-COMMISSIONING,NHS ROTHERHAM CCG GP PRACTICE,30827180,"(1,530.00)"
Department of Health,NHS Rotherham CCG,31/01/2020,C&M-PMS Cost of Drugs -Dispensing,LOCAL ENHANCED SERVICES,NHS ROTHERHAM CCG GP PRACTICE,30827183,"76,834.98 "
Department of Health,NHS Rotherham CCG,31/01/2020,C&M-PMS Prof fees Dispensing,PRC DELEGATED CO-COMMISSIONING,NHS ROTHERHAM CCG GP PRACTICE,30827183,"12,656.75 "
Department of Health,NHS Rotherham CCG,31/01/2020,C&M-PMS Prsc Chrgs Cll&Rmttd by GPs,LOCAL ENHANCED SERVICES,NHS ROTHERHAM CCG GP PRACTICE,30827183,"1,530.00 "
Department of Health,NHS Rotherham CCG,31/01/2020,C&M-GMS Global Sum,PRC DELEGATED CO-COMMISSIONING,NHS ROTHERHAM CCG GP PRACTICE,30805192,"89,996.75 "
Department of Health,NHS Rotherham CCG,31/01/2020,C&M-GMS MPIG Correction Factor,PRC DELEGATED CO-COMMISSIONING,NHS ROTHERHAM CCG GP PRACTICE,30805192,"1,086.44 "
Department of Health,NHS Rotherham CCG,31/01/2020,C&M-GMS PCN DES Participation,PRC DELEGATED CO-COMMISSIONING,NHS ROTHERHAM CCG GP PRACTICE,30805192,"1,824.48 "
Department of Health,NHS Rotherham CCG,31/01/2020,C&M-GMS Prem Cost Rent,PRC DELEGATED CO-COMMISSIONING,NHS ROTHERHAM CCG GP PRACTICE,30805192,762.92 
Department of Health,NHS Rotherham CCG,31/01/2020,C&M-GMS Prem Notional Rent,PRC DELEGATED CO-COMMISSIONING,NHS ROTHERHAM CCG GP PRACTICE,30805192,"9,116.66 "
Department of Health,NHS Rotherham CCG,31/01/2020,C&M-GMS Prem Rates,PRC DELEGATED CO-COMMISSIONING,NHS ROTHERHAM CCG GP PRACTICE,30805192,"1,687.12 "
Department of Health,NHS Rotherham CCG,31/01/2020,C&M-GMS Prem Water Rates,PRC DELEGATED CO-COMMISSIONING,NHS ROTHERHAM CCG GP PRACTICE,30805192,165.26 
Department of Health,NHS Rotherham CCG,31/01/2020,C&M-GMS QOF Aspiration,PRC DELEGATED CO-COMMISSIONING,NHS ROTHERHAM CCG GP PRACTICE,30805192,"9,272.29 "
Department of Health,NHS Rotherham CCG,31/01/2020,C&M-GMS Cost of Drugs -Dispensing,LOCAL ENHANCED SERVICES,NHS ROTHERHAM CCG GP PRACTICE,30827195,"30,793.12 "
Department of Health,NHS Rotherham CCG,31/01/2020,C&M-GMS Prof Fees Dispensing,PRC DELEGATED CO-COMMISSIONING,NHS ROTHERHAM CCG GP PRACTICE,30827195,"4,481.97 "
Department of Health,NHS Rotherham CCG,31/01/2020,C&M-GMS PrscrptnChrgsColl&RmttdbyGP,LOCAL ENHANCED SERVICES,NHS ROTHERHAM CCG GP PRACTICE,30827195,"1,026.00 "
Department of Health,NHS Rotherham CCG,31/01/2020,C&M-PMS Contract Value,PRC DELEGATED CO-COMMISSIONING,NHS ROTHERHAM CCG GP PRACTICE,30545485,(805.88)
Department of Health,NHS Rotherham CCG,31/01/2020,C&M-PMS GP Statutory Levy,PRC DELEGATED CO-COMMISSIONING,NHS ROTHERHAM CCG GP PRACTICE,30545485,(423.27)
Department of Health,NHS Rotherham CCG,31/01/2020,C&M-PMS Out of Hours Opt Outs,PRC DELEGATED CO-COMMISSIONING,NHS ROTHERHAM CCG GP PRACTICE,30545485,"(5,734.41)"
Department of Health,NHS Rotherham CCG,31/01/2020,C&M-PMS Voluntary Levy,PRC DELEGATED CO-COMMISSIONING,NHS ROTHERHAM CCG GP PRACTICE,30545485,(62.25)
Department of Health,NHS Rotherham CCG,31/01/2020,ME - PMS GP Prior Year ERs,PRC DELEGATED CO-COMMISSIONING,NHS ROTHERHAM CCG GP PRACTICE,30545485,"(3,226.60)"
Department of Health,NHS Rotherham CCG,31/01/2020,ME-PMS GP Pension EEs-PMS,PRC DELEGATED CO-COMMISSIONING,NHS ROTHERHAM CCG GP PRACTICE,30545485,"(7,437.39)"
Department of Health,NHS Rotherham CCG,31/01/2020,ME-PMS GP Pension ERs Adjs - PMS,PRC DELEGATED CO-COMMISSIONING,NHS ROTHERHAM CCG GP PRACTICE,30545485,"(7,922.48)"
Department of Health,NHS Rotherham CCG,31/01/2020,ME-PMS GP Prior Year EEs,PRC DELEGATED CO-COMMISSIONING,NHS ROTHERHAM CCG GP PRACTICE,30545485,"(3,372.55)"
Department of Health,NHS Rotherham CCG,31/01/2020,C&M-PMS Contract Value,PRC DELEGATED CO-COMMISSIONING,NHS ROTHERHAM CCG GP PRACTICE,30545486,"122,469.58 "
Department of Health,NHS Rotherham CCG,31/01/2020,C&M-PMS DES Learn Dsblty Hlth Chk,PRC DELEGATED CO-COMMISSIONING,NHS ROTHERHAM CCG GP PRACTICE,30545486,560.00 
Department of Health,NHS Rotherham CCG,31/01/2020,C&M-PMS Out of Hours Opt Outs,PRC DELEGATED CO-COMMISSIONING,NHS ROTHERHAM CCG GP PRACTICE,30545486,37.78 
Department of Health,NHS Rotherham CCG,31/01/2020,C&M-PMS PCN DES Participation,PRC DELEGATED CO-COMMISSIONING,NHS ROTHERHAM CCG GP PRACTICE,30545486,"2,326.04 "
Department of Health,NHS Rotherham CCG,31/01/2020,C&M-PMS PCO Other,PRC DELEGATED CO-COMMISSIONING,NHS ROTHERHAM CCG GP PRACTICE,30545486,127.52 
Department of Health,NHS Rotherham CCG,31/01/2020,C&M-PMS Prem Notional Rent,PRC DELEGATED CO-COMMISSIONING,NHS ROTHERHAM CCG GP PRACTICE,30545486,"10,391.67 "
Department of Health,NHS Rotherham CCG,31/01/2020,C&M-PMS Prem Rates,PRC DELEGATED CO-COMMISSIONING,NHS ROTHERHAM CCG GP PRACTICE,30545486,"2,295.00 "
Department of Health,NHS Rotherham CCG,31/01/2020,C&M-PMS QOF Aspiration,PRC DELEGATED CO-COMMISSIONING,NHS ROTHERHAM CCG GP PRACTICE,30545486,"12,100.31 "
Department of Health,NHS Rotherham CCG,31/01/2020,ME - PMS GP Prior Year ERs,PRC DELEGATED CO-COMMISSIONING,NHS ROTHERHAM CCG GP PRACTICE,30545486,"8,109.90 "
Department of Health,NHS Rotherham CCG,31/01/2020,ME-PMS GP Prior Year EEs,PRC DELEGATED CO-COMMISSIONING,NHS ROTHERHAM CCG GP PRACTICE,30545486,"1,925.45 "
Department of Health,NHS Rotherham CCG,31/01/2020,C&M-PMS Contract Value,PRC DELEGATED CO-COMMISSIONING,NHS ROTHERHAM CCG GP PRACTICE,30545483,(192.11)
Department of Health,NHS Rotherham CCG,31/01/2020,C&M-PMS GP Statutory Levy,PRC DELEGATED CO-COMMISSIONING,NHS ROTHERHAM CCG GP PRACTICE,30545483,(501.61)
Department of Health,NHS Rotherham CCG,31/01/2020,C&M-PMS Out of Hours Opt Outs,PRC DELEGATED CO-COMMISSIONING,NHS ROTHERHAM CCG GP PRACTICE,30545483,"(7,202.80)"
Department of Health,NHS Rotherham CCG,31/01/2020,C&M-PMS Prem Healthcentre Rent,PRC DELEGATED CO-COMMISSIONING,NHS ROTHERHAM CCG GP PRACTICE,30545483,(5.09)
Department of Health,NHS Rotherham CCG,31/01/2020,C&M-PMS Voluntary Levy,PRC DELEGATED CO-COMMISSIONING,NHS ROTHERHAM CCG GP PRACTICE,30545483,(73.77)
Department of Health,NHS Rotherham CCG,31/01/2020,ME - PMS TPS Added Years Adj EEs,PRC DELEGATED CO-COMMISSIONING,NHS ROTHERHAM CCG GP PRACTICE,30545483,(176.27)
Department of Health,NHS Rotherham CCG,31/01/2020,ME-PMS GP Pension EEs-PMS,PRC DELEGATED CO-COMMISSIONING,NHS ROTHERHAM CCG GP PRACTICE,30545483,"(12,266.76)"
Department of Health,NHS Rotherham CCG,31/01/2020,ME-PMS GP Pension ERs Adjs - PMS,PRC DELEGATED CO-COMMISSIONING,NHS ROTHERHAM CCG GP PRACTICE,30545483,"(13,003.53)"
Department of Health,NHS Rotherham CCG,31/01/2020,C&M-PMS Contract Value,PRC DELEGATED CO-COMMISSIONING,NHS ROTHERHAM CCG GP PRACTICE,30545484,"154,389.92 "
Department of Health,NHS Rotherham CCG,31/01/2020,C&M-PMS DES Extended Hours Access,PRC DELEGATED CO-COMMISSIONING,NHS ROTHERHAM CCG GP PRACTICE,30545484,"6,289.71 "
Department of Health,NHS Rotherham CCG,31/01/2020,C&M-PMS Out of Hours Opt Outs,PRC DELEGATED CO-COMMISSIONING,NHS ROTHERHAM CCG GP PRACTICE,30545484,9.01 
Department of Health,NHS Rotherham CCG,31/01/2020,C&M-PMS PCN DES Clinical Director,PRC DELEGATED CO-COMMISSIONING,NHS ROTHERHAM CCG GP PRACTICE,30545484,"2,938.64 "
Department of Health,NHS Rotherham CCG,31/01/2020,C&M-PMS PCN DES PCN support,LOCAL ENHANCED SERVICES,NHS ROTHERHAM CCG GP PRACTICE,30545484,"6,444.38 "
Department of Health,NHS Rotherham CCG,31/01/2020,C&M-PMS PCN DES Participation,PRC DELEGATED CO-COMMISSIONING,NHS ROTHERHAM CCG GP PRACTICE,30545484,"2,893.70 "
Department of Health,NHS Rotherham CCG,31/01/2020,C&M-PMS PCO Other,PRC DELEGATED CO-COMMISSIONING,NHS ROTHERHAM CCG GP PRACTICE,30545484,"1,049.90 "
Department of Health,NHS Rotherham CCG,31/01/2020,C&M-PMS Prem Actual Rent,PRC DELEGATED CO-COMMISSIONING,NHS ROTHERHAM CCG GP PRACTICE,30545484,550.00 
Department of Health,NHS Rotherham CCG,31/01/2020,C&M-PMS Prem Healthcentre Rent,PRC DELEGATED CO-COMMISSIONING,NHS ROTHERHAM CCG GP PRACTICE,30545484,542.41 
Department of Health,NHS Rotherham CCG,31/01/2020,C&M-PMS Prem Notional Rent,PRC DELEGATED CO-COMMISSIONING,NHS ROTHERHAM CCG GP PRACTICE,30545484,"21,023.33 "
Department of Health,NHS Rotherham CCG,31/01/2020,C&M-PMS Prem Rates,PRC DELEGATED CO-COMMISSIONING,NHS ROTHERHAM CCG GP PRACTICE,30545484,"6,663.00 "
Department of Health,NHS Rotherham CCG,31/01/2020,C&M-PMS QOF Aspiration,PRC DELEGATED CO-COMMISSIONING,NHS ROTHERHAM CCG GP PRACTICE,30545484,"14,780.00 "
Department of Health,NHS Rotherham CCG,31/01/2020,ME - PMS GP Prior Year ERs,PRC DELEGATED CO-COMMISSIONING,NHS ROTHERHAM CCG GP PRACTICE,30545484,"2,414.54 "
Department of Health,NHS Rotherham CCG,31/01/2020,ME-PMS GP Prior Year EEs,PRC DELEGATED CO-COMMISSIONING,NHS ROTHERHAM CCG GP PRACTICE,30545484,"2,818.58 "
Department of Health,NHS Rotherham CCG,31/01/2020,C&M-PMS Contract Value,PRC DELEGATED CO-COMMISSIONING,NHS ROTHERHAM CCG GP PRACTICE,30545508,"57,690.98 "
Department of Health,NHS Rotherham CCG,31/01/2020,C&M-PMS Out of Hours Opt Outs,PRC DELEGATED CO-COMMISSIONING,NHS ROTHERHAM CCG GP PRACTICE,30545508,13.18 
Department of Health,NHS Rotherham CCG,31/01/2020,C&M-PMS PCN DES Participation,PRC DELEGATED CO-COMMISSIONING,NHS ROTHERHAM CCG GP PRACTICE,30545508,"1,094.90 "
Department of Health,NHS Rotherham CCG,31/01/2020,C&M-PMS PCO Other,PRC DELEGATED CO-COMMISSIONING,NHS ROTHERHAM CCG GP PRACTICE,30545508,449.60 
Department of Health,NHS Rotherham CCG,31/01/2020,C&M-PMS Prem Healthcentre Rent,PRC DELEGATED CO-COMMISSIONING,NHS ROTHERHAM CCG GP PRACTICE,30545508,"4,085.86 "
Department of Health,NHS Rotherham CCG,31/01/2020,C&M-PMS QOF Aspiration,PRC DELEGATED CO-COMMISSIONING,NHS ROTHERHAM CCG GP PRACTICE,30545508,"5,425.84 "
Department of Health,NHS Rotherham CCG,31/01/2020,C&M-GMS Global Sum,PRC DELEGATED CO-COMMISSIONING,NHS ROTHERHAM CCG GP PRACTICE,30806606,"27,512.33 "
Department of Health,NHS Rotherham CCG,31/01/2020,C&M-GMS MPIG Correction Factor,PRC DELEGATED CO-COMMISSIONING,NHS ROTHERHAM CCG GP PRACTICE,30806606,44.99 
Department of Health,NHS Rotherham CCG,31/01/2020,C&M-GMS PCN DES Participation,PRC DELEGATED CO-COMMISSIONING,NHS ROTHERHAM CCG GP PRACTICE,30806606,561.77 
Department of Health,NHS Rotherham CCG,31/01/2020,C&M-GMS Prem Healthcentre Rent,PRC DELEGATED CO-COMMISSIONING,NHS ROTHERHAM CCG GP PRACTICE,30806606,"2,708.13 "
Department of Health,NHS Rotherham CCG,31/01/2020,C&M-GMS QOF Aspiration,PRC DELEGATED CO-COMMISSIONING,NHS ROTHERHAM CCG GP PRACTICE,30806606,"3,090.40 "
Department of Health,NHS Rotherham CCG,31/01/2020,C&M-PMS Contract Value,PRC DELEGATED CO-COMMISSIONING,NHS ROTHERHAM CCG GP PRACTICE,30545488,"28,560.22 "
Department of Health,NHS Rotherham CCG,31/01/2020,C&M-PMS PCN DES Participation,PRC DELEGATED CO-COMMISSIONING,NHS ROTHERHAM CCG GP PRACTICE,30545488,533.23 
Department of Health,NHS Rotherham CCG,31/01/2020,C&M-PMS Prem Notional Rent,PRC DELEGATED CO-COMMISSIONING,NHS ROTHERHAM CCG GP PRACTICE,30545488,"3,100.00 "
Department of Health,NHS Rotherham CCG,31/01/2020,C&M-PMS Prem Rates,PRC DELEGATED CO-COMMISSIONING,NHS ROTHERHAM CCG GP PRACTICE,30545488,575.00 
Department of Health,NHS Rotherham CCG,31/01/2020,C&M-PMS QOF Aspiration,PRC DELEGATED CO-COMMISSIONING,NHS ROTHERHAM CCG GP PRACTICE,30545488,"2,978.58 "
Department of Health,NHS Rotherham CCG,31/01/2020,C&M-PMS Contract Value,PRC DELEGATED CO-COMMISSIONING,NHS ROTHERHAM CCG GP PRACTICE,30545496,"55,384.91 "
Department of Health,NHS Rotherham CCG,31/01/2020,C&M-PMS Out of Hours Opt Outs,PRC DELEGATED CO-COMMISSIONING,NHS ROTHERHAM CCG GP PRACTICE,30545496,15.36 
Department of Health,NHS Rotherham CCG,31/01/2020,C&M-PMS PCN DES Participation,PRC DELEGATED CO-COMMISSIONING,NHS ROTHERHAM CCG GP PRACTICE,30545496,"1,043.43 "
Department of Health,NHS Rotherham CCG,31/01/2020,C&M-PMS Prem Notional Rent,PRC DELEGATED CO-COMMISSIONING,NHS ROTHERHAM CCG GP PRACTICE,30545496,"6,791.67 "
Department of Health,NHS Rotherham CCG,31/01/2020,C&M-PMS Prem Rates,PRC DELEGATED CO-COMMISSIONING,NHS ROTHERHAM CCG GP PRACTICE,30545496,"1,669.00 "
Department of Health,NHS Rotherham CCG,31/01/2020,C&M-PMS QOF Aspiration,PRC DELEGATED CO-COMMISSIONING,NHS ROTHERHAM CCG GP PRACTICE,30545496,"5,291.59 "
Department of Health,NHS Rotherham CCG,31/01/2020,C&M-GMS Global Sum,PRC DELEGATED CO-COMMISSIONING,NHS ROTHERHAM CCG GP PRACTICE,30805197,"73,489.36 "
Department of Health,NHS Rotherham CCG,31/01/2020,C&M-GMS PCN DES Participation,PRC DELEGATED CO-COMMISSIONING,NHS ROTHERHAM CCG GP PRACTICE,30805197,"1,502.24 "
Department of Health,NHS Rotherham CCG,31/01/2020,C&M-GMS Prem Notional Rent,PRC DELEGATED CO-COMMISSIONING,NHS ROTHERHAM CCG GP PRACTICE,30805197,"6,225.00 "
Department of Health,NHS Rotherham CCG,31/01/2020,C&M-GMS Prem Rates,PRC DELEGATED CO-COMMISSIONING,NHS ROTHERHAM CCG GP PRACTICE,30805197,"1,074.00 "
Department of Health,NHS Rotherham CCG,31/01/2020,C&M-GMS Prem Water Rates,PRC DELEGATED CO-COMMISSIONING,NHS ROTHERHAM CCG GP PRACTICE,30805197,228.03 
Department of Health,NHS Rotherham CCG,31/01/2020,C&M-GMS QOF Aspiration,PRC DELEGATED CO-COMMISSIONING,NHS ROTHERHAM CCG GP PRACTICE,30805197,"7,535.78 "
Department of Health,NHS Rotherham CCG,31/01/2020,C&M-GMS Global Sum,PRC DELEGATED CO-COMMISSIONING,NHS ROTHERHAM CCG GP PRACTICE,30805203,"29,775.04 "
Department of Health,NHS Rotherham CCG,31/01/2020,C&M-GMS PCN DES Participation,PRC DELEGATED CO-COMMISSIONING,NHS ROTHERHAM CCG GP PRACTICE,30805203,629.16 
Department of Health,NHS Rotherham CCG,31/01/2020,C&M-GMS Prem Healthcentre Rent,PRC DELEGATED CO-COMMISSIONING,NHS ROTHERHAM CCG GP PRACTICE,30805203,"3,808.94 "
Department of Health,NHS Rotherham CCG,31/01/2020,C&M-GMS QOF Aspiration,PRC DELEGATED CO-COMMISSIONING,NHS ROTHERHAM CCG GP PRACTICE,30805203,"2,683.09 "
Department of Health,NHS Rotherham CCG,31/01/2020,C&M-PMS Contract Value,PRC DELEGATED CO-COMMISSIONING,NHS ROTHERHAM CCG GP PRACTICE,30545492,"67,209.35 "
Department of Health,NHS Rotherham CCG,31/01/2020,C&M-PMS Out of Hours Opt Outs,PRC DELEGATED CO-COMMISSIONING,NHS ROTHERHAM CCG GP PRACTICE,30545492,6.38 
Department of Health,NHS Rotherham CCG,31/01/2020,C&M-PMS PCN DES Participation,PRC DELEGATED CO-COMMISSIONING,NHS ROTHERHAM CCG GP PRACTICE,30545492,"1,300.95 "
Department of Health,NHS Rotherham CCG,31/01/2020,C&M-PMS PCO Other,PRC DELEGATED CO-COMMISSIONING,NHS ROTHERHAM CCG GP PRACTICE,30545492,503.10 
Department of Health,NHS Rotherham CCG,31/01/2020,C&M-PMS Prem Notional Rent,PRC DELEGATED CO-COMMISSIONING,NHS ROTHERHAM CCG GP PRACTICE,30545492,"4,200.00 "
Department of Health,NHS Rotherham CCG,31/01/2020,C&M-PMS Prem Rates,PRC DELEGATED CO-COMMISSIONING,NHS ROTHERHAM CCG GP PRACTICE,30545492,"1,338.00 "
Department of Health,NHS Rotherham CCG,31/01/2020,C&M-PMS QOF Aspiration,PRC DELEGATED CO-COMMISSIONING,NHS ROTHERHAM CCG GP PRACTICE,30545492,"6,241.30 "
Department of Health,NHS Rotherham CCG,31/01/2020,ME - PMS GP Prior Year ERs,PRC DELEGATED CO-COMMISSIONING,NHS ROTHERHAM CCG GP PRACTICE,30545492,24.32 
Department of Health,NHS Rotherham CCG,31/01/2020,ME-PMS GP Prior Year EEs,PRC DELEGATED CO-COMMISSIONING,NHS ROTHERHAM CCG GP PRACTICE,30545492,638.87 
Department of Health,NHS Rotherham CCG,31/01/2020,C&M-PMS Contract Value,PRC DELEGATED CO-COMMISSIONING,NHS ROTHERHAM CCG GP PRACTICE,30546260,"52,851.05 "
Department of Health,NHS Rotherham CCG,31/01/2020,C&M-PMS Out of Hours Opt Outs,PRC DELEGATED CO-COMMISSIONING,NHS ROTHERHAM CCG GP PRACTICE,30546260,45.55 
Department of Health,NHS Rotherham CCG,31/01/2020,C&M-PMS PCN DES Participation,PRC DELEGATED CO-COMMISSIONING,NHS ROTHERHAM CCG GP PRACTICE,30546260,"1,006.50 "
Department of Health,NHS Rotherham CCG,31/01/2020,C&M-PMS PCO Other,PRC DELEGATED CO-COMMISSIONING,NHS ROTHERHAM CCG GP PRACTICE,30546260,389.90 
Department of Health,NHS Rotherham CCG,31/01/2020,C&M-PMS Prem Notional Rent,PRC DELEGATED CO-COMMISSIONING,NHS ROTHERHAM CCG GP PRACTICE,30546260,"3,645.83 "
Department of Health,NHS Rotherham CCG,31/01/2020,C&M-PMS Prem Rates,PRC DELEGATED CO-COMMISSIONING,NHS ROTHERHAM CCG GP PRACTICE,30546260,619.00 
Department of Health,NHS Rotherham CCG,31/01/2020,C&M-PMS QOF Aspiration,PRC DELEGATED CO-COMMISSIONING,NHS ROTHERHAM CCG GP PRACTICE,30546260,"5,265.47 "
Department of Health,NHS Rotherham CCG,31/01/2020,ME - PMS GP Prior Year ERs,PRC DELEGATED CO-COMMISSIONING,NHS ROTHERHAM CCG GP PRACTICE,30546260,"2,893.06 "
Department of Health,NHS Rotherham CCG,31/01/2020,ME-PMS GP Prior Year EEs,PRC DELEGATED CO-COMMISSIONING,NHS ROTHERHAM CCG GP PRACTICE,30546260,"2,917.20 "
Department of Health,NHS Rotherham CCG,31/01/2020,C&M-PMS Contract Value,PRC DELEGATED CO-COMMISSIONING,NHS ROTHERHAM CCG GP PRACTICE,30546262,"70,111.40 "
Department of Health,NHS Rotherham CCG,31/01/2020,C&M-PMS Out of Hours Opt Outs,PRC DELEGATED CO-COMMISSIONING,NHS ROTHERHAM CCG GP PRACTICE,30546262,4.30 
Department of Health,NHS Rotherham CCG,31/01/2020,C&M-PMS PCN DES Participation,PRC DELEGATED CO-COMMISSIONING,NHS ROTHERHAM CCG GP PRACTICE,30546262,"1,319.91 "
Department of Health,NHS Rotherham CCG,31/01/2020,C&M-PMS Prem Healthcentre Rent,PRC DELEGATED CO-COMMISSIONING,NHS ROTHERHAM CCG GP PRACTICE,30546262,541.34 
Department of Health,NHS Rotherham CCG,31/01/2020,C&M-PMS Prem Notional Rent,PRC DELEGATED CO-COMMISSIONING,NHS ROTHERHAM CCG GP PRACTICE,30546262,"3,402.08 "
Department of Health,NHS Rotherham CCG,31/01/2020,C&M-PMS Prem Rates,PRC DELEGATED CO-COMMISSIONING,NHS ROTHERHAM CCG GP PRACTICE,30546262,775.00 
Department of Health,NHS Rotherham CCG,31/01/2020,C&M-PMS QOF Aspiration,PRC DELEGATED CO-COMMISSIONING,NHS ROTHERHAM CCG GP PRACTICE,30546262,"5,951.76 "
Department of Health,NHS Rotherham CCG,31/01/2020,C&M-PMS Contract Value,PRC DELEGATED CO-COMMISSIONING,NHS ROTHERHAM CCG GP PRACTICE,30546258,"50,741.90 "
Department of Health,NHS Rotherham CCG,31/01/2020,C&M-PMS Out of Hours Opt Outs,PRC DELEGATED CO-COMMISSIONING,NHS ROTHERHAM CCG GP PRACTICE,30546258,8.90 
Department of Health,NHS Rotherham CCG,31/01/2020,C&M-PMS PCN DES Participation,PRC DELEGATED CO-COMMISSIONING,NHS ROTHERHAM CCG GP PRACTICE,30546258,962.29 
Department of Health,NHS Rotherham CCG,31/01/2020,C&M-PMS PCO Other,PRC DELEGATED CO-COMMISSIONING,NHS ROTHERHAM CCG GP PRACTICE,30546258,435.50 
Department of Health,NHS Rotherham CCG,31/01/2020,C&M-PMS Prem Healthcentre Rent,PRC DELEGATED CO-COMMISSIONING,NHS ROTHERHAM CCG GP PRACTICE,30546258,"1,979.17 "
Department of Health,NHS Rotherham CCG,31/01/2020,C&M-PMS QOF Aspiration,PRC DELEGATED CO-COMMISSIONING,NHS ROTHERHAM CCG GP PRACTICE,30546258,"4,116.14 "
Department of Health,NHS Rotherham CCG,31/01/2020,C&M-PMS Contract Value,PRC DELEGATED CO-COMMISSIONING,NHS ROTHERHAM CCG GP PRACTICE,30545490,"47,587.92 "
Department of Health,NHS Rotherham CCG,31/01/2020,C&M-PMS Out of Hours Opt Outs,PRC DELEGATED CO-COMMISSIONING,NHS ROTHERHAM CCG GP PRACTICE,30545490,12.40 
Department of Health,NHS Rotherham CCG,31/01/2020,C&M-PMS PCN DES Participation,PRC DELEGATED CO-COMMISSIONING,NHS ROTHERHAM CCG GP PRACTICE,30545490,905.83 
Department of Health,NHS Rotherham CCG,31/01/2020,C&M-PMS PCO Other,PRC DELEGATED CO-COMMISSIONING,NHS ROTHERHAM CCG GP PRACTICE,30545490,376.70 
Department of Health,NHS Rotherham CCG,31/01/2020,C&M-PMS Prem Notional Rent,PRC DELEGATED CO-COMMISSIONING,NHS ROTHERHAM CCG GP PRACTICE,30545490,"7,135.92 "
Department of Health,NHS Rotherham CCG,31/01/2020,C&M-PMS QOF Aspiration,PRC DELEGATED CO-COMMISSIONING,NHS ROTHERHAM CCG GP PRACTICE,30545490,"3,946.92 "
Department of Health,NHS Rotherham CCG,31/01/2020,C&M-PMS Contract Value,PRC DELEGATED CO-COMMISSIONING,NHS ROTHERHAM CCG GP PRACTICE,30545498,"38,426.82 "
Department of Health,NHS Rotherham CCG,31/01/2020,C&M-PMS Out of Hours Opt Outs,PRC DELEGATED CO-COMMISSIONING,NHS ROTHERHAM CCG GP PRACTICE,30545498,9.10 
Department of Health,NHS Rotherham CCG,31/01/2020,C&M-PMS PCN DES Participation,PRC DELEGATED CO-COMMISSIONING,NHS ROTHERHAM CCG GP PRACTICE,30545498,722.91 
Department of Health,NHS Rotherham CCG,31/01/2020,C&M-PMS Prem Notional Rent,PRC DELEGATED CO-COMMISSIONING,NHS ROTHERHAM CCG GP PRACTICE,30545498,"3,204.17 "
Department of Health,NHS Rotherham CCG,31/01/2020,C&M-PMS QOF Aspiration,PRC DELEGATED CO-COMMISSIONING,NHS ROTHERHAM CCG GP PRACTICE,30545498,"3,061.55 "
Department of Health,NHS Rotherham CCG,31/01/2020,C&M-PMS Contract Value,PRC DELEGATED CO-COMMISSIONING,NHS ROTHERHAM CCG GP PRACTICE,30545500,"78,688.32 "
Department of Health,NHS Rotherham CCG,31/01/2020,C&M-PMS PCN DES Participation,PRC DELEGATED CO-COMMISSIONING,NHS ROTHERHAM CCG GP PRACTICE,30545500,"1,490.44 "
Department of Health,NHS Rotherham CCG,31/01/2020,C&M-PMS PCO Other,PRC DELEGATED CO-COMMISSIONING,NHS ROTHERHAM CCG GP PRACTICE,30545500,622.20 
Department of Health,NHS Rotherham CCG,31/01/2020,C&M-PMS Prem Notional Rent,PRC DELEGATED CO-COMMISSIONING,NHS ROTHERHAM CCG GP PRACTICE,30545500,"6,512.50 "
Department of Health,NHS Rotherham CCG,31/01/2020,C&M-PMS Prem Rates,PRC DELEGATED CO-COMMISSIONING,NHS ROTHERHAM CCG GP PRACTICE,30545500,"1,919.00 "
Department of Health,NHS Rotherham CCG,31/01/2020,C&M-PMS Prem Water Rates,PRC DELEGATED CO-COMMISSIONING,NHS ROTHERHAM CCG GP PRACTICE,30545500,64.07 
Department of Health,NHS Rotherham CCG,31/01/2020,C&M-PMS QOF Aspiration,PRC DELEGATED CO-COMMISSIONING,NHS ROTHERHAM CCG GP PRACTICE,30545500,"7,577.85 "
Department of Health,NHS Rotherham CCG,31/01/2020,Prescribing,MEDICINES MANAGEMENT - CLINICAL,FRESENIUS KABI LTD,30647373,"35,913.75 "
Department of Health,NHS Rotherham CCG,31/12/2019,Prescribing,MEDICINES MANAGEMENT - CLINICAL,FRESENIUS KABI LTD,30430187,"37,057.28"
Department of Health,NHS Rotherham CCG,31/01/2020,C&M-APMS Contract Value,PRC DELEGATED CO-COMMISSIONING,GATE SURGERY,30545502,"74,466.74 "
Department of Health,NHS Rotherham CCG,31/01/2020,C&M-APMS DES Violent Patients,PRC DELEGATED CO-COMMISSIONING,GATE SURGERY,30545502,604.25 
Department of Health,NHS Rotherham CCG,31/01/2020,C&M-APMS PCN DES Participation,PRC DELEGATED CO-COMMISSIONING,GATE SURGERY,30545502,"1,174.75 "
Department of Health,NHS Rotherham CCG,31/01/2020,C&M-APMS Prem Actual Rent,PRC DELEGATED CO-COMMISSIONING,GATE SURGERY,30545502,"2,083.33 "
Department of Health,NHS Rotherham CCG,31/01/2020,C&M-APMS Prem Healthcentre Rent,PRC DELEGATED CO-COMMISSIONING,GATE SURGERY,30545502,"4,500.00 "
Department of Health,NHS Rotherham CCG,31/01/2020,C&M-PMS QOF Aspiration,PRC DELEGATED CO-COMMISSIONING,GATE SURGERY,30545502,"5,449.13 "
Department of Health,NHS Rotherham CCG,31/01/2020,Apprenticeship Levy Payable,BALANCE SHEET,HMRC,30596014,589.00 
Department of Health,NHS Rotherham CCG,31/01/2020,Income tax <1Yr,BALANCE SHEET,HMRC,30596014,"53,362.20 "
Department of Health,NHS Rotherham CCG,31/01/2020,Income tax <1Yr-Student Loans,BALANCE SHEET,HMRC,30596014,254.00 
Department of Health,NHS Rotherham CCG,31/01/2020,National Insurance < 1 yr-NI- ERS,BALANCE SHEET,HMRC,30596014,"38,984.24 "
Department of Health,NHS Rotherham CCG,31/01/2020,National Insurance < 1 yr-NI-EES,BALANCE SHEET,HMRC,30596014,"29,514.30 "
Department of Health,NHS Rotherham CCG,31/01/2020,LPF Management Fees,BUSINESS INFORMATICS,KIER BUSINESS SERVICES LTD,30520035,"25,282.80 "
Department of Health,NHS Rotherham CCG,31/01/2020,Audit Fees: Statutory,ADMINISTRATION & BUSINESS SUPPORT,KPMG LLP,30507288,"32,733.00 "
Department of Health,NHS Rotherham CCG,31/01/2020,Hcare Srv Rec NHS Trust-Contract Baseline,ACUTE COMMISSIONING,LEEDS TEACHING HOSPITALS NHS TRUST,30507162,"25,642.00 "
Department of Health,NHS Rotherham CCG,31/01/2020,C&M-PMS Contract Value,PRC DELEGATED CO-COMMISSIONING,NHS ROTHERHAM CCG GP PRACTICE,30546264,"120,693.32 "
Department of Health,NHS Rotherham CCG,31/01/2020,C&M-PMS DES Learn Dsblty Hlth Chk,PRC DELEGATED CO-COMMISSIONING,NHS ROTHERHAM CCG GP PRACTICE,30546264,"3,220.00 "
Department of Health,NHS Rotherham CCG,31/01/2020,C&M-PMS PCN DES Participation,PRC DELEGATED CO-COMMISSIONING,NHS ROTHERHAM CCG GP PRACTICE,30546264,"2,272.25 "
Department of Health,NHS Rotherham CCG,31/01/2020,C&M-PMS PCO Other,PRC DELEGATED CO-COMMISSIONING,NHS ROTHERHAM CCG GP PRACTICE,30546264,822.50 
Department of Health,NHS Rotherham CCG,31/01/2020,C&M-PMS Prem Actual Rent,PRC DELEGATED CO-COMMISSIONING,NHS ROTHERHAM CCG GP PRACTICE,30546264,"11,987.51 "
Department of Health,NHS Rotherham CCG,31/01/2020,C&M-PMS Prem Healthcentre Rent,PRC DELEGATED CO-COMMISSIONING,NHS ROTHERHAM CCG GP PRACTICE,30546264,"1,185.09 "
Department of Health,NHS Rotherham CCG,31/01/2020,C&M-PMS Prem Notional Rent,PRC DELEGATED CO-COMMISSIONING,NHS ROTHERHAM CCG GP PRACTICE,30546264,"7,326.17 "
Department of Health,NHS Rotherham CCG,31/01/2020,C&M-PMS Prem Rates,PRC DELEGATED CO-COMMISSIONING,NHS ROTHERHAM CCG GP PRACTICE,30546264,"4,410.00 "
Department of Health,NHS Rotherham CCG,31/01/2020,C&M-PMS QOF Aspiration,PRC DELEGATED CO-COMMISSIONING,NHS ROTHERHAM CCG GP PRACTICE,30546264,"12,029.07 "
Department of Health,NHS Rotherham CCG,31/01/2020,ME - PMS GP Prior Year ERs,PRC DELEGATED CO-COMMISSIONING,NHS ROTHERHAM CCG GP PRACTICE,30546264,"2,724.84 "
Department of Health,NHS Rotherham CCG,31/01/2020,ME-PMS GP Prior Year EEs,PRC DELEGATED CO-COMMISSIONING,NHS ROTHERHAM CCG GP PRACTICE,30546264,"3,635.77 "
Department of Health,NHS Rotherham CCG,31/01/2020,C&M-PMS Contract Value,PRC DELEGATED CO-COMMISSIONING,NHS ROTHERHAM CCG GP PRACTICE,30545505,(12.64)
Department of Health,NHS Rotherham CCG,31/01/2020,C&M-PMS GP Statutory Levy,PRC DELEGATED CO-COMMISSIONING,NHS ROTHERHAM CCG GP PRACTICE,30545505,(182.72)
Department of Health,NHS Rotherham CCG,31/01/2020,C&M-PMS Out of Hours Opt Outs,PRC DELEGATED CO-COMMISSIONING,NHS ROTHERHAM CCG GP PRACTICE,30545505,"(2,508.82)"
Department of Health,NHS Rotherham CCG,31/01/2020,C&M-PMS Voluntary Levy,PRC DELEGATED CO-COMMISSIONING,NHS ROTHERHAM CCG GP PRACTICE,30545505,(26.87)
Department of Health,NHS Rotherham CCG,31/01/2020,ME - PMS GP Prior Year ERs,PRC DELEGATED CO-COMMISSIONING,NHS ROTHERHAM CCG GP PRACTICE,30545505,"(9,574.77)"
Department of Health,NHS Rotherham CCG,31/01/2020,ME-PMS GP Pension EEs Adjs - PMS,PRC DELEGATED CO-COMMISSIONING,NHS ROTHERHAM CCG GP PRACTICE,30545505,"(7,639.14)"
Department of Health,NHS Rotherham CCG,31/01/2020,ME-PMS GP Pension EEs-PMS,PRC DELEGATED CO-COMMISSIONING,NHS ROTHERHAM CCG GP PRACTICE,30545505,"(3,828.27)"
Department of Health,NHS Rotherham CCG,31/01/2020,ME-PMS GP Pension ERs Adjs - PMS,PRC DELEGATED CO-COMMISSIONING,NHS ROTHERHAM CCG GP PRACTICE,30545505,"(11,449.65)"
Department of Health,NHS Rotherham CCG,31/01/2020,ME-PMS GP Prior Year EEs,PRC DELEGATED CO-COMMISSIONING,NHS ROTHERHAM CCG GP PRACTICE,30545505,"(9,654.68)"
Department of Health,NHS Rotherham CCG,31/01/2020,C&M-PMS Contract Value,PRC DELEGATED CO-COMMISSIONING,NHS ROTHERHAM CCG GP PRACTICE,30545506,"53,657.36 "
Department of Health,NHS Rotherham CCG,31/01/2020,C&M-PMS Out of Hours Opt Outs,PRC DELEGATED CO-COMMISSIONING,NHS ROTHERHAM CCG GP PRACTICE,30545506,0.59 
Department of Health,NHS Rotherham CCG,31/01/2020,C&M-PMS PCN DES Participation,PRC DELEGATED CO-COMMISSIONING,NHS ROTHERHAM CCG GP PRACTICE,30545506,"1,006.95 "
Department of Health,NHS Rotherham CCG,31/01/2020,C&M-PMS Prem Healthcentre Rent,PRC DELEGATED CO-COMMISSIONING,NHS ROTHERHAM CCG GP PRACTICE,30545506,"4,036.12 "
Department of Health,NHS Rotherham CCG,31/01/2020,C&M-PMS QOF Aspiration,PRC DELEGATED CO-COMMISSIONING,NHS ROTHERHAM CCG GP PRACTICE,30545506,"5,794.69 "
Department of Health,NHS Rotherham CCG,31/01/2020,Clinical&Medical-Commercial Sector,WHEELCHAIR SERVICE,MEDEQUIP ASSISTIVE TECHNOLOGY LTD,30687992,"177,341.52 "
Department of Health,NHS Rotherham CCG,31/01/2020,Clinical&Medical-Commercial Sector,WHEELCHAIR SERVICE,MEDEQUIP ASSISTIVE TECHNOLOGY LTD,30846978,"26,956.80 "
Department of Health,NHS Rotherham CCG,31/12/2019,Clinical&Medical-Commercial Sector,LEARNING DIFFICULTIES,MOORVILLE RESIDENTIAL,30430070,"28,576.73"
Department of Health,NHS Rotherham CCG,31/12/2019,Voids and Subsidies,RECHARGES NHS PROPERTY SERVICES LTD,NHS PROPERTY SERVICES LTD,30430014,"31,626.00"
Department of Health,NHS Rotherham CCG,31/12/2019,Voids and Subsidies,RECHARGES NHS PROPERTY SERVICES LTD,NHS PROPERTY SERVICES LTD,30430019,"35,100.31"
Department of Health,NHS Rotherham CCG,31/12/2019,Voids and Subsidies,RECHARGES NHS PROPERTY SERVICES LTD,NHS PROPERTY SERVICES LTD,30430020,"105,436.40"
Department of Health,NHS Rotherham CCG,31/12/2019,Voids and Subsidies,RECHARGES NHS PROPERTY SERVICES LTD,NHS PROPERTY SERVICES LTD,30430023,"35,646.58"
Department of Health,NHS Rotherham CCG,31/12/2019,Voids and Subsidies,RECHARGES NHS PROPERTY SERVICES LTD,NHS PROPERTY SERVICES LTD,30430049,"30,640.44"
Department of Health,NHS Rotherham CCG,31/12/2019,Non-PFI Oprtng Lease-Bldgs-Lease Rent,ESTATES AND FACILITIES,NHS PROPERTY SERVICES LTD,30430177,"-48,780.92"
Department of Health,NHS Rotherham CCG,31/12/2019,Voids and Subsidies,RECHARGES NHS PROPERTY SERVICES LTD,NHS PROPERTY SERVICES LTD,30430178,"-30,640.44"
Department of Health,NHS Rotherham CCG,31/01/2020,Hlthcre-Foundation Trsts,LEARNING DIFFICULTIES,NORTHUMBERLAND TYNE AND WEAR NHS FOUNDATION TRUST,30467992,"57,452.40 "
Department of Health,NHS Rotherham CCG,31/01/2020,Hlthcre-Foundation Trsts,LEARNING DIFFICULTIES,NORTHUMBERLAND TYNE AND WEAR NHS FOUNDATION TRUST,30468089,"60,173.10 "
Department of Health,NHS Rotherham CCG,31/01/2020,Clinical&Medical-Commercial Sector,ACUTE COMMISSIONING,ONEHEALTH GROUP,30599036,"57,744.62 "
Department of Health,NHS Rotherham CCG,31/01/2020,Clinical&Medical-Commercial Sector,ACUTE COMMISSIONING,ONEHEALTH GROUP,30782882,"44,655.75 "
Department of Health,NHS Rotherham CCG,31/01/2020,Oth Travel Costs-Patient Transport,PATIENT TRANSPORT,PREMIER CARE DIRECT LTD,30468013,"47,297.42 "
Department of Health,NHS Rotherham CCG,31/01/2020,Clinical&Medical-Commercial Sector,LEARNING DIFFICULTIES,RELATIVETO LTD,30647300,"46,235.61 "
Department of Health,NHS Rotherham CCG,31/01/2020,Clinical&Medical-Commercial Sector,LEARNING DIFFICULTIES,RELATIVETO LTD,30647315,"(46,235.61)"
Department of Health,NHS Rotherham CCG,31/01/2020,Hcare Srv Rec Fdtn Trust-Contract Baseline,MENTAL HEALTH CONTRACTS,ROTHERHAM DONCASTER AND SOUTH HUMBER NHS FOUNDATION TRUST,30599293,"231,914.00 "
Department of Health,NHS Rotherham CCG,31/01/2020,Hcare Srv Rec Fdtn Trust-Contract Baseline,MENTAL HEALTH CONTRACTS,ROTHERHAM DONCASTER AND SOUTH HUMBER NHS FOUNDATION TRUST,30627717,"2,407,575.00 "
Department of Health,NHS Rotherham CCG,31/01/2020,Hcare Srv Rec Fdtn Trust-Contract Baseline,LEARNING DIFFICULTIES,ROTHERHAM DONCASTER AND SOUTH HUMBER NHS FOUNDATION TRUST,30627720,"192,090.54 "
Department of Health,NHS Rotherham CCG,31/01/2020,Cont Care- Palliative Care,CHC ADULT FULLY FUNDED,ROTHERHAM HOSPICE TRUST (THE),30520131,"45,518.26 "
Department of Health,NHS Rotherham CCG,31/01/2020,Cont Care-Physical Disab (65+),CHC ADULT FULLY FUNDED,ROTHERHAM HOSPICE TRUST (THE),30520131,"6,363.19 "
Department of Health,NHS Rotherham CCG,31/01/2020,Clinical&Medical-Othe Public Sector,CHILD AND ADOLESCENT MENTAL HEALTH,ROTHERHAM METROPOLITAN BOROUGH COUNCIL,30442073,"54,000.00 "
Department of Health,NHS Rotherham CCG,31/01/2020,Clinical&Medical-Othe Public Sector,INTERMEDIATE CARE,ROTHERHAM METROPOLITAN BOROUGH COUNCIL,30599333,"920,500.00 "
Department of Health,NHS Rotherham CCG,31/01/2020,Clinical&Medical-Othe Public Sector,CARERS,ROTHERHAM METROPOLITAN BOROUGH COUNCIL,30599337,"150,000.00 "
Department of Health,NHS Rotherham CCG,31/01/2020,Cont Care- Prior Year Payments,CHC ADULT FULLY FUNDED,ROTHERHAM METROPOLITAN BOROUGH COUNCIL,30635357,"250,000.00 "
Department of Health,NHS Rotherham CCG,31/01/2020,Cont Care- Prior Year Payments,CHC ADULT FULLY FUNDED,ROTHERHAM METROPOLITAN BOROUGH COUNCIL,30635358,"500,000.00 "
Department of Health,NHS Rotherham CCG,31/01/2020,Clinical&Medical-Othe Public Sector,MENTAL HEALTH SERVICES - OTHER,ROTHERHAM METROPOLITAN BOROUGH COUNCIL,30783011,"32,810.00 "
Department of Health,NHS Rotherham CCG,31/12/2019,Hcare Srv Rec Fdtn Trust-Contract Baseline,ACUTE COMMISSIONING,ROTHERHAM NHS FOUNDATION TRUST,30436347,"12,924,150.00"
Department of Health,NHS Rotherham CCG,31/12/2019,Hcare Srv Rec Fdtn Trust-Contract Baseline,COMMUNITY SERVICES,ROTHERHAM NHS FOUNDATION TRUST,30436347,"2,249,442.00"
Department of Health,NHS Rotherham CCG,31/01/2020,Hcare Srv Rec Fdtn Trust-Contract Baseline,ACUTE COMMISSIONING,SHEFFIELD CHILDRENS NHS FOUNDATION TRUST,30486563,"49,067.08 "
Department of Health,NHS Rotherham CCG,31/12/2019,Hcare Srv Rec Fdtn Trust-Contract Baseline,ACUTE COMMISSIONING,SHEFFIELD CHILDRENS NHS FOUNDATION TRUST,30383045,"185,885.00"
Department of Health,NHS Rotherham CCG,31/12/2019,Hcare Srv Rec Fdtn Trust-Contract Cost per Case,ACUTE COMMISSIONING,SHEFFIELD TEACHING HOSPITALS NHS FOUNDATION TRUST,30383065,"84,923.00"
Department of Health,NHS Rotherham CCG,31/12/2019,Hcare Srv Rec Fdtn Trust-Contract Baseline,ACUTE COMMISSIONING,SHEFFIELD TEACHING HOSPITALS NHS FOUNDATION TRUST,30383067,"553,729.00"
Department of Health,NHS Rotherham CCG,31/12/2019,Hcare Srv Rec Fdtn Trust-Contract Cost per Case,ACUTE COMMISSIONING,SHEFFIELD TEACHING HOSPITALS NHS FOUNDATION TRUST,30383076,"198,207.00"
Department of Health,NHS Rotherham CCG,31/12/2019,Hcare Srv Rec Fdtn Trust-Contract Baseline,ACUTE COMMISSIONING,SHEFFIELD TEACHING HOSPITALS NHS FOUNDATION TRUST,30383078,"1,849,863.00"
Department of Health,NHS Rotherham CCG,31/01/2020,Clinical&Medical-Commercial Sector,ACUTE COMMISSIONING,SPAMEDICA LTD,30765229,"74,629.76 "
Department of Health,NHS Rotherham CCG,31/01/2020,Clinical&Medical-Commercial Sector,ACUTE COMMISSIONING,SPAMEDICA LTD,30765238,"80,439.30 "
Department of Health,NHS Rotherham CCG,31/01/2020,C&M-PMS Contract Value,PRC DELEGATED CO-COMMISSIONING,NHS ROTHERHAM CCG GP PRACTICE,30545504,"128,236.06 "
Department of Health,NHS Rotherham CCG,31/01/2020,C&M-PMS Out of Hours Opt Outs,PRC DELEGATED CO-COMMISSIONING,NHS ROTHERHAM CCG GP PRACTICE,30545504,4.16 
Department of Health,NHS Rotherham CCG,31/01/2020,C&M-PMS PCN DES Participation,PRC DELEGATED CO-COMMISSIONING,NHS ROTHERHAM CCG GP PRACTICE,30545504,"2,432.26 "
Department of Health,NHS Rotherham CCG,31/01/2020,C&M-PMS PCO Other,PRC DELEGATED CO-COMMISSIONING,NHS ROTHERHAM CCG GP PRACTICE,30545504,996.80 
Department of Health,NHS Rotherham CCG,31/01/2020,C&M-PMS Prem Healthcentre Rent,PRC DELEGATED CO-COMMISSIONING,NHS ROTHERHAM CCG GP PRACTICE,30545504,993.65 
Department of Health,NHS Rotherham CCG,31/01/2020,C&M-PMS QOF Aspiration,PRC DELEGATED CO-COMMISSIONING,NHS ROTHERHAM CCG GP PRACTICE,30545504,"13,089.33 "
Department of Health,NHS Rotherham CCG,31/01/2020,Hcare Srv Rec NHS Trust-Contract Baseline,AMBULANCE SERVICES,YORKSHIRE AMBULANCE SERVICE NHS TRUST,30486556,"719,948.00 "
Department of Health,NHS Rotherham CCG,31/01/2020,Hcare Srv Rec NHS Trust-Contract Baseline,NHS 111,YORKSHIRE AMBULANCE SERVICE NHS TRUST,30486565,"66,286.17 "
Department of Health,NHS Rotherham CCG,31/01/2020,Hcare Srv Rec NHS Trust-Contract Baseline,PATIENT TRANSPORT,YORKSHIRE AMBULANCE SERVICE NHS TRUST,30486567,"127,826.33 "
,,,,,,,"29,180,927.88 "
